Workbook

Sheet Itau - Alimenta
A2: Empresa: | B2: ITAÚ ALIMENTA | D2: Banco: | H2: Crédito | J2: =E4501 -> 0
D3: Agencia n° | H3: Débito | J3: =D4501 -> 1748.81
D4: Conta Corrente n.º: | H4: Devolução DOC | J4: 0
H5: Juros | J5: =D1084+D1092+D1107+D1144+D1167+D1187+D1200+D1204+D1220+D1227+D1238 -> 0
A6: Valor do saldo anterior 31/12/2015 | C6: 576.19 | D6: Referente o ano de: | E6: 2016 | H6: Amortização | J6: 0
A7: Valor final do saldo Extrato Bancário | C7: =C6+E4501-D4501 -> -1172.62 | H7: Devolução CH | J7: 0
F9: SALDO
A10: Data | B10: Discrição (nome do credor) | C10: Histórico | D10: Débito | E10: Crédito | F10: =C6 -> 576.19 | G10: Centro de Custo | H10: NF n° ou caixa de | I10: Emissão ou depósito | J10: Vencim. | K10: Tipo de pgto e entrada
A11: 2015-05-01 | B11: Grilo e Irmão Ltda | C11: Ficha avulsa e cheque list 02/02 | D11: 900 | F11: =IF(E11>0,F10+E11,IF(D11>0,F10-D11," ")) -> -323.81 | G11: Pessoal dez | H11: 4429 | J11: 2016-01-02 | K11: Boleto
A12: 2016-05-01 | B12: VBI Byteway informática Ltda | C12: Duas Impressora novos Guiches 02/02 | D12: 400 | F12: =IF(E12>0,F11+E12,IF(D12>0,F11-D12," ")) -> -723.81 | G12: Pessoal dez | H12: 4101 | J12: 2016-01-03 | K12: Boleto
A13: 2016-05-02 | B13: Tokio Marine Brasil Seguradora | C13: Seguro valores Buriti 05/07 | D13: 448.81 | F13: =IF(E13>0,F12+E13,IF(D13>0,F12-D13," ")) -> -1172.62 | G13: Pessoal dez | H13: 7107 | J13: 2016-01-03 | K13: Boleto
F77: =IF(E77>0,F76+E77,IF(D77>0,F76-D77," ")) -> 
F141: =IF(E141>0,F140+E141,IF(D141>0,F140-D141," ")) -> 
F205: =IF(E205>0,F204+E205,IF(D205>0,F204-D205," ")) -> 
F269: =IF(E269>0,F268+E269,IF(D269>0,F268-D269," ")) -> 
F333: =IF(E333>0,F332+E333,IF(D333>0,F332-D333," ")) -> 
F397: =IF(E397>0,F396+E397,IF(D397>0,F396-D397," ")) -> 
F461: =IF(E461>0,F460+E461,IF(D461>0,F460-D461," ")) -> 
F525: =IF(E525>0,F524+E525,IF(D525>0,F524-D525," ")) -> 
F589: =IF(E589>0,F588+E589,IF(D589>0,F588-D589," ")) -> 
F653: =IF(E653>0,F652+E653,IF(D653>0,F652-D653," ")) -> 
F717: =IF(E717>0,F716+E717,IF(D717>0,F716-D717," ")) -> 
F781: =IF(E781>0,F780+E781,IF(D781>0,F780-D781," ")) -> 
F845: =IF(E845>0,F844+E845,IF(D845>0,F844-D845," ")) -> 
F870: =IF(E870>0,F869+E870,IF(D870>0,F869-D870," ")) -> 
F909: =IF(E909>0,F908+E909,IF(D909>0,F908-D909," ")) -> 
F973: =IF(E973>0,F972+E973,IF(D973>0,F972-D973," ")) -> 
F1037: =IF(E1037>0,F1036+E1037,IF(D1037>0,F1036-D1037," ")) -> 
F1101: =IF(E1101>0,F1100+E1101,IF(D1101>0,F1100-D1101," ")) -> 
F1165: =IF(E1165>0,F1164+E1165,IF(D1165>0,F1164-D1165," ")) -> 
F1229: =IF(E1229>0,F1228+E1229,IF(D1229>0,F1228-D1229," ")) -> 
F1293: =IF(E1293>0,F1292+E1293,IF(D1293>0,F1292-D1293," ")) -> 
F1357: =IF(E1357>0,F1356+E1357,IF(D1357>0,F1356-D1357," ")) -> 
F1421: =IF(E1421>0,F1420+E1421,IF(D1421>0,F1420-D1421," ")) -> 
F1485: =IF(E1485>0,F1484+E1485,IF(D1485>0,F1484-D1485," ")) -> 
F1549: =IF(E1549>0,F1548+E1549,IF(D1549>0,F1548-D1549," ")) -> 
F1613: =IF(E1613>0,F1612+E1613,IF(D1613>0,F1612-D1613," ")) -> 
F1677: =IF(E1677>0,F1676+E1677,IF(D1677>0,F1676-D1677," ")) -> 
F1741: =IF(E1741>0,F1740+E1741,IF(D1741>0,F1740-D1741," ")) -> 
F1805: =IF(E1805>0,F1804+E1805,IF(D1805>0,F1804-D1805," ")) -> 
F1869: =IF(E1869>0,F1868+E1869,IF(D1869>0,F1868-D1869," ")) -> 
F1933: =IF(E1933>0,F1932+E1933,IF(D1933>0,F1932-D1933," ")) -> 
F1997: =IF(E1997>0,F1996+E1997,IF(D1997>0,F1996-D1997," ")) -> 
F2061: =IF(E2061>0,F2060+E2061,IF(D2061>0,F2060-D2061," ")) -> 
F2125: =IF(E2125>0,F2124+E2125,IF(D2125>0,F2124-D2125," ")) -> 
F2189: =IF(E2189>0,F2188+E2189,IF(D2189>0,F2188-D2189," ")) -> 
F2253: =IF(E2253>0,F2252+E2253,IF(D2253>0,F2252-D2253," ")) -> 
F2317: =IF(E2317>0,F2316+E2317,IF(D2317>0,F2316-D2317," ")) -> 
F2381: =IF(E2381>0,F2380+E2381,IF(D2381>0,F2380-D2381," ")) -> 
F2445: =IF(E2445>0,F2444+E2445,IF(D2445>0,F2444-D2445," ")) -> 
F2509: =IF(E2509>0,F2508+E2509,IF(D2509>0,F2508-D2509," ")) -> 
F2573: =IF(E2573>0,F2572+E2573,IF(D2573>0,F2572-D2573," ")) -> 
F2637: =IF(E2637>0,F2636+E2637,IF(D2637>0,F2636-D2637," ")) -> 
F2701: =IF(E2701>0,F2700+E2701,IF(D2701>0,F2700-D2701," ")) -> 
F2765: =IF(E2765>0,F2764+E2765,IF(D2765>0,F2764-D2765," ")) -> 
F2829: =IF(E2829>0,F2828+E2829,IF(D2829>0,F2828-D2829," ")) -> 
F2893: =IF(E2893>0,F2892+E2893,IF(D2893>0,F2892-D2893," ")) -> 
F2957: =IF(E2957>0,F2956+E2957,IF(D2957>0,F2956-D2957," ")) -> 
F3021: =IF(E3021>0,F3020+E3021,IF(D3021>0,F3020-D3021," ")) -> 
F3085: =IF(E3085>0,F3084+E3085,IF(D3085>0,F3084-D3085," ")) -> 
F3149: =IF(E3149>0,F3148+E3149,IF(D3149>0,F3148-D3149," ")) -> 
F3213: =IF(E3213>0,F3212+E3213,IF(D3213>0,F3212-D3213," ")) -> 
F3277: =IF(E3277>0,F3276+E3277,IF(D3277>0,F3276-D3277," ")) -> 
F3341: =IF(E3341>0,F3340+E3341,IF(D3341>0,F3340-D3341," ")) -> 
F3405: =IF(E3405>0,F3404+E3405,IF(D3405>0,F3404-D3405," ")) -> 
F3469: =IF(E3469>0,F3468+E3469,IF(D3469>0,F3468-D3469," ")) -> 
F3533: =IF(E3533>0,F3532+E3533,IF(D3533>0,F3532-D3533," ")) -> 
F3597: =IF(E3597>0,F3596+E3597,IF(D3597>0,F3596-D3597," ")) -> 
F3661: =IF(E3661>0,F3660+E3661,IF(D3661>0,F3660-D3661," ")) -> 
F3725: =IF(E3725>0,F3724+E3725,IF(D3725>0,F3724-D3725," ")) -> 
F3789: =IF(E3789>0,F3788+E3789,IF(D3789>0,F3788-D3789," ")) -> 
F3853: =IF(E3853>0,F3852+E3853,IF(D3853>0,F3852-D3853," ")) -> 
F3917: =IF(E3917>0,F3916+E3917,IF(D3917>0,F3916-D3917," ")) -> 
F3981: =IF(E3981>0,F3980+E3981,IF(D3981>0,F3980-D3981," ")) -> 
F4045: =IF(E4045>0,F4044+E4045,IF(D4045>0,F4044-D4045," ")) -> 
F4109: =IF(E4109>0,F4108+E4109,IF(D4109>0,F4108-D4109," ")) -> 
F4173: =IF(E4173>0,F4172+E4173,IF(D4173>0,F4172-D4173," ")) -> 
F4237: =IF(E4237>0,F4236+E4237,IF(D4237>0,F4236-D4237," ")) -> 
F4301: =IF(E4301>0,F4300+E4301,IF(D4301>0,F4300-D4301," ")) -> 
F4365: =IF(E4365>0,F4364+E4365,IF(D4365>0,F4364-D4365," ")) -> 
F4429: =IF(E4429>0,F4428+E4429,IF(D4429>0,F4428-D4429," ")) -> 
F4493: =IF(E4493>0,F4492+E4493,IF(D4493>0,F4492-D4493," ")) -> 
A4501: Total | D4501: =SUM(D11:D4500) -> 1748.81 | E4501: =SUM(E11:E4500) -> 0

Sheet HSBC - Golden
A2: Empresa: | B2: HSBC Golden | D2: Banco: | H2: Crédito | J2: =E4501 -> 0
A3: C.N.P.J n.º: | D3: Agencia n° | H3: Débito | J3: =D4501 -> 0
A4: Endereço: | D4: Conta Corrente n.º: | H4: Devolução DOC | J4: 0
B5: CEP 01234-000 | H5: Juros | J5: =D1084+D1092+D1107+D1144+D1167+D1187+D1200+D1204+D1220+D1227+D1238 -> 0
A6: Valor do saldo anterior 31/12/2015 | C6: 576.19 | D6: Referente o ano de: | E6: 2016 | H6: Amortização | J6: 0
A7: Valor final do saldo Extrato Bancário | C7: =C6+E4501-D4501 -> 576.19 | H7: Devolução CH | J7: 0
F9: SALDO
A10: Data | B10: Discrição (nome do credor) | C10: Histórico | D10: Débito | E10: Crédito | F10: =C6 -> 576.19 | G10: Centro de Custo | H10: NF n° ou caixa de | I10: Emissão ou depósito | J10: Vencim. | K10: Tipo de pgto e entrada
F11: =IF(E11>0,F10+E11,IF(D11>0,F10-D11," ")) -> 
F12: =IF(E12>0,F11+E12,IF(D12>0,F11-D12," ")) -> 
F13: =IF(E13>0,F12+E13,IF(D13>0,F12-D13," ")) -> 
F77: =IF(E77>0,F76+E77,IF(D77>0,F76-D77," ")) -> 
F141: =IF(E141>0,F140+E141,IF(D141>0,F140-D141," ")) -> 
F205: =IF(E205>0,F204+E205,IF(D205>0,F204-D205," ")) -> 
F269: =IF(E269>0,F268+E269,IF(D269>0,F268-D269," ")) -> 
F333: =IF(E333>0,F332+E333,IF(D333>0,F332-D333," ")) -> 
F397: =IF(E397>0,F396+E397,IF(D397>0,F396-D397," ")) -> 
F461: =IF(E461>0,F460+E461,IF(D461>0,F460-D461," ")) -> 
F525: =IF(E525>0,F524+E525,IF(D525>0,F524-D525," ")) -> 
F589: =IF(E589>0,F588+E589,IF(D589>0,F588-D589," ")) -> 
F653: =IF(E653>0,F652+E653,IF(D653>0,F652-D653," ")) -> 
F717: =IF(E717>0,F716+E717,IF(D717>0,F716-D717," ")) -> 
F781: =IF(E781>0,F780+E781,IF(D781>0,F780-D781," ")) -> 
F845: =IF(E845>0,F844+E845,IF(D845>0,F844-D845," ")) -> 
F870: =IF(E870>0,F869+E870,IF(D870>0,F869-D870," ")) -> 
F909: =IF(E909>0,F908+E909,IF(D909>0,F908-D909," ")) -> 
F973: =IF(E973>0,F972+E973,IF(D973>0,F972-D973," ")) -> 
F1037: =IF(E1037>0,F1036+E1037,IF(D1037>0,F1036-D1037," ")) -> 
F1101: =IF(E1101>0,F1100+E1101,IF(D1101>0,F1100-D1101," ")) -> 
F1165: =IF(E1165>0,F1164+E1165,IF(D1165>0,F1164-D1165," ")) -> 
F1229: =IF(E1229>0,F1228+E1229,IF(D1229>0,F1228-D1229," ")) -> 
F1293: =IF(E1293>0,F1292+E1293,IF(D1293>0,F1292-D1293," ")) -> 
F1357: =IF(E1357>0,F1356+E1357,IF(D1357>0,F1356-D1357," ")) -> 
F1421: =IF(E1421>0,F1420+E1421,IF(D1421>0,F1420-D1421," ")) -> 
F1485: =IF(E1485>0,F1484+E1485,IF(D1485>0,F1484-D1485," ")) -> 
F1549: =IF(E1549>0,F1548+E1549,IF(D1549>0,F1548-D1549," ")) -> 
F1613: =IF(E1613>0,F1612+E1613,IF(D1613>0,F1612-D1613," ")) -> 
F1677: =IF(E1677>0,F1676+E1677,IF(D1677>0,F1676-D1677," ")) -> 
F1741: =IF(E1741>0,F1740+E1741,IF(D1741>0,F1740-D1741," ")) -> 
F1805: =IF(E1805>0,F1804+E1805,IF(D1805>0,F1804-D1805," ")) -> 
F1869: =IF(E1869>0,F1868+E1869,IF(D1869>0,F1868-D1869," ")) -> 
F1933: =IF(E1933>0,F1932+E1933,IF(D1933>0,F1932-D1933," ")) -> 
F1997: =IF(E1997>0,F1996+E1997,IF(D1997>0,F1996-D1997," ")) -> 
F2061: =IF(E2061>0,F2060+E2061,IF(D2061>0,F2060-D2061," ")) -> 
F2125: =IF(E2125>0,F2124+E2125,IF(D2125>0,F2124-D2125," ")) -> 
F2189: =IF(E2189>0,F2188+E2189,IF(D2189>0,F2188-D2189," ")) -> 
F2253: =IF(E2253>0,F2252+E2253,IF(D2253>0,F2252-D2253," ")) -> 
F2317: =IF(E2317>0,F2316+E2317,IF(D2317>0,F2316-D2317," ")) -> 
F2381: =IF(E2381>0,F2380+E2381,IF(D2381>0,F2380-D2381," ")) -> 
F2445: =IF(E2445>0,F2444+E2445,IF(D2445>0,F2444-D2445," ")) -> 
F2509: =IF(E2509>0,F2508+E2509,IF(D2509>0,F2508-D2509," ")) -> 
F2573: =IF(E2573>0,F2572+E2573,IF(D2573>0,F2572-D2573," ")) -> 
F2637: =IF(E2637>0,F2636+E2637,IF(D2637>0,F2636-D2637," ")) -> 
F2701: =IF(E2701>0,F2700+E2701,IF(D2701>0,F2700-D2701," ")) -> 
F2765: =IF(E2765>0,F2764+E2765,IF(D2765>0,F2764-D2765," ")) -> 
F2829: =IF(E2829>0,F2828+E2829,IF(D2829>0,F2828-D2829," ")) -> 
F2893: =IF(E2893>0,F2892+E2893,IF(D2893>0,F2892-D2893," ")) -> 
F2957: =IF(E2957>0,F2956+E2957,IF(D2957>0,F2956-D2957," ")) -> 
F3021: =IF(E3021>0,F3020+E3021,IF(D3021>0,F3020-D3021," ")) -> 
F3085: =IF(E3085>0,F3084+E3085,IF(D3085>0,F3084-D3085," ")) -> 
F3149: =IF(E3149>0,F3148+E3149,IF(D3149>0,F3148-D3149," ")) -> 
F3213: =IF(E3213>0,F3212+E3213,IF(D3213>0,F3212-D3213," ")) -> 
F3277: =IF(E3277>0,F3276+E3277,IF(D3277>0,F3276-D3277," ")) -> 
F3341: =IF(E3341>0,F3340+E3341,IF(D3341>0,F3340-D3341," ")) -> 
F3405: =IF(E3405>0,F3404+E3405,IF(D3405>0,F3404-D3405," ")) -> 
F3469: =IF(E3469>0,F3468+E3469,IF(D3469>0,F3468-D3469," ")) -> 
F3533: =IF(E3533>0,F3532+E3533,IF(D3533>0,F3532-D3533," ")) -> 
F3597: =IF(E3597>0,F3596+E3597,IF(D3597>0,F3596-D3597," ")) -> 
F3661: =IF(E3661>0,F3660+E3661,IF(D3661>0,F3660-D3661," ")) -> 
F3725: =IF(E3725>0,F3724+E3725,IF(D3725>0,F3724-D3725," ")) -> 
F3789: =IF(E3789>0,F3788+E3789,IF(D3789>0,F3788-D3789," ")) -> 
F3853: =IF(E3853>0,F3852+E3853,IF(D3853>0,F3852-D3853," ")) -> 
F3917: =IF(E3917>0,F3916+E3917,IF(D3917>0,F3916-D3917," ")) -> 
F3981: =IF(E3981>0,F3980+E3981,IF(D3981>0,F3980-D3981," ")) -> 
F4045: =IF(E4045>0,F4044+E4045,IF(D4045>0,F4044-D4045," ")) -> 
F4109: =IF(E4109>0,F4108+E4109,IF(D4109>0,F4108-D4109," ")) -> 
F4173: =IF(E4173>0,F4172+E4173,IF(D4173>0,F4172-D4173," ")) -> 
F4237: =IF(E4237>0,F4236+E4237,IF(D4237>0,F4236-D4237," ")) -> 
F4301: =IF(E4301>0,F4300+E4301,IF(D4301>0,F4300-D4301," ")) -> 
F4365: =IF(E4365>0,F4364+E4365,IF(D4365>0,F4364-D4365," ")) -> 
F4429: =IF(E4429>0,F4428+E4429,IF(D4429>0,F4428-D4429," ")) -> 
F4493: =IF(E4493>0,F4492+E4493,IF(D4493>0,F4492-D4493," ")) -> 
A4501: Total | D4501: =SUM(D11:D4500) -> 0 | E4501: =SUM(E11:E4500) -> 0

Sheet Custo Assolan (hidden)
C1: ALIMENTA SERVIÇOS LTDA
C2: RESULTADO POR FILIAL 12/2012
C4: Filial - | D4: ASSOLAN
A5: 1 - RECEITAS | G5: =G7+G8+G9+G10+G11+G12+G13+G14+G15+G16 -> 0
A6: Nota fiscal | B6: Histórico | G6: VALOR
A17: 2- DESPESAS OPERACIONAIS | G17: =D186 -> 0
A18: 3- DESPESAS ADMINISTRATIVAS | G18: =#REF!/4 -> 
A19: 4- RESULTADO LIQUIDO | G19: =G5-G17-G18 -> 
A20: Data | B20: Discrição (nome do credor) | C20: Histórico | D20: Valor | E20: NF N° | F20: EMISSÃO | G20: VENC. | H20: OBS.
A186: TOTAL | D186: =SUM(D21:D185) -> 0

Sheet Custo Sotrec (hidden)
C1: ALIMENTA SERVIÇOS LTDA
C2: RESULTADO POR FILIAL 12/2012
C4: Filial - | D4: SOTREC
A5: 1 - RECEITAS | G5: =G7+G8+G9+G10+G11+G12+G13+G14+G15+G16 -> 0
A6: Nota fiscal | B6: Histórico | G6: VALOR
A17: 2- DESPESAS OPERACIONAIS | G17: =D186 -> 0
A18: 3- DESPESAS ADMINISTRATIVAS | G18: =#REF!/4 -> 
A19: 4- RESULTADO LIQUIDO | G19: =G5-G17-G18 -> 
A20: Data | B20: Discrição (nome do credor) | C20: Histórico | D20: Valor | E20: NF N° | F20: EMISSÃO | G20: VENC. | H20: OBS.
A186: TOTAL | D186: =SUM(D21:D185) -> 0

Sheet Itatiba (hidden)
C1: CNS COMUNICAÇÃO LTDA RELATÓRIO MENSAL DETALHADO 04/2015 - FILIAL Itatiba
A5: 1 - RECEITAS | G5: =G7+G8 -> 0
A6: Nota fiscal | B6: Histórico | G6: VALOR
G8: 0
A9: 2- DESPESAS OPERACIONAIS | G9: =D178 -> 0
A10: 3- DESPESAS ADMINISTRATIVAS
A11: 4- RESULTADO LIQUIDO | G11: =G5-G9-G10 -> 0
A12: Data | B12: Discrição (nome do credor) | C12: Histórico | D12: Valor | E12: NF N° | F12: EMISSÃO | G12: VENC. | H12: OBS.
B178: TOTAL | D178: =SUM(D13:D177) -> 0
B181: Receitas | C181: Despesas
B182: 6912.5 | C182: 5562.91 | D182: Janeiro
C183: 17915.1 | D183: Fevereiro
D184: Março
D185: Abril
D186: Maio
D187: Junho
D188: Julho
D189: Agosto
D190: Setembro
D191: Outubro
D192: Novembro
D193: Dezembro

Sheet Contas a pagar 2016
A1: CONTAS A PAGAR 2016
A9: Data | B9: Discrição (nome do credor) | C9: Histórico | D9: Débito | E9: Filial Saída | F9: NF e Caixa de | G9: Banco | H9: Vencim. | I9: Tipo de pgto e entrada
A10: 2015-05-01 | B10: Grilo e Irmão Ltda | C10: Ficha avulsa e cheque list 02/02 | D10: 900 | E10: Outlet | F10: 4429 | G10: dia 1 | H10: 2016-01-02 | I10: Boleto
A11: 2016-05-01 | B11: VBI Byteway informática Ltda | C11: Duas Impressora novos Guiches 02/02 | D11: 400 | E11: Buriti | F11: 4101 | G11: dia 1 | H11: 2016-01-03 | I11: Boleto
A12: 2016-05-02 | B12: Tokio Marine Brasil Seguradora | C12: Seguro valores Buriti 05/07 | D12: 448.81 | E12: Buriti | F12: 71075011 | G12: dia 2 | H12: 2016-01-03 | I12: Boleto
D2733: =SUM(D10:D2732) -> 1748.81

Sheet dia 1
B3: ="Controle Bancário Golden e Alimenta "&C5 &" de "&C6 &" de "&C7 -> Controle Bancário Golden e Alimenta 01 de maio de 2016
B5: Dia: | C5: 01 | F5: Saldo Anterior: | G5: 1500 | K5: Banco | L5: ITAÚ
B6: Mês: | C6: maio | F6: Entrada do dia: | G6: =F63 -> 0 | K6: Agência | L6: 429
B7: Ano: | C7: 2016 | F7: Saída do dia: | G7: =E63 -> 1300 | K7: Conta corrente | L7: 58903-9
F8: Saldo Atual: | G8: =G5+G6-G7 -> 200
B11: Data | C11: Descrição | D11: Histórico | E11: Débito | F11: Crédito | G11: Saldo | H11: Filial / Saída | I11: NF ou Caixa de | J11: Conc. Banc. | K11: Vencim. | L11: Tipo de pgto e entrada
G12: =G5 -> 1500
B13: 2015-05-01 | C13: Grilo e Irmão Ltda | D13: Ficha avulsa e cheque list 02/02 | E13: 900 | G13: =IF(F13>0,G12+F13,IF(E13>0,G12-E13," ")) -> 600 | H13: Outlet | I13: 1912-02-15 | J13: A | K13: 2016-01-02 | L13: Boleto
B14: 2016-05-01 | C14: VBI Byteway informática Ltda | D14: Duas Impressora novos Guiches 02/02 | E14: 400 | G14: =IF(F14>0,G13+F14,IF(E14>0,G13-E14," ")) -> 200 | H14: Buriti | I14: 4101 | J14: G | K14: 2016-01-03 | L14: Boleto
B63: TOTAIS | E63: =SUM(E13:E62) -> 1300 | F63: 0 | G63: =G5+F63-E63 -> 200

Sheet dia 2
B3: ="Controle Bancário Golden e Alimenta "&C5 &" de "&C6 &" de "&C7 -> Controle Bancário Golden e Alimenta 02 de maio de 2016
B5: Dia: | C5: 02 | F5: Saldo Anterior: | G5: 200 | K5: Banco | L5: ITAÚ
B6: Mês: | C6: maio | F6: Entrada do dia: | G6: =F63 -> 0 | K6: Agência | L6: 429
B7: Ano: | C7: 2016 | F7: Saída do dia: | G7: =E63 -> 448.81 | K7: Conta corrente | L7: 58903-9
F8: Saldo Atual: | G8: =G5+G6-G7 -> -248.81
B11: Data | C11: Descrição | D11: Histórico | E11: Débito | F11: Crédito | G11: Saldo | H11: Filial / Saída | I11: NF n° ou caixa de | J11: Conc. Banc. | K11: Vencim. | L11: Tipo de pgto e entrada
G12: =G5 -> 200
B13: 2016-05-02 | C13: Tokio Marine Brasil Seguradora | D13: Seguro valores Buriti 05/07 | E13: 448.81 | G13: =IF(F13>0,G12+F13,IF(E13>0,G12-E13," ")) -> -248.81 | H13: Buriti | I13: 1919-06-16 | J13: A | K13: 2016-01-03 | L13: Boleto
G14: =IF(F14>0,G13+F14,IF(E14>0,G13-E14," ")) -> 
B63: TOTAIS | E63: =SUM(E13:E62) -> 448.81 | F63: 0 | G63: =G5+F63-E63 -> -248.81

Sheet pessoal dez
B2: ="Custo Relatório mensal detalhado "&B4 &" "&B5 &" de "&B6 -> Custo Relatório mensal detalhado ''PESSOAL'' dezembro de 2016
B4: ''PESSOAL'' | C4: Voltar ao menu pessoal
B5: dezembro
B6: 2016 | E6: Retirada | F6: =E178 -> 1748.81
C7: Voltar ao menu principal
B12: Data | C12: Discrição (nome credor) | D12: Histórico | E12: Valor | F12: Obs.
B13: 2015-05-01 | C13: Grilo e Irmão Ltda | D13: Ficha avulsa e cheque list 02/02 | E13: 900
B14: 2016-05-01 | C14: VBI Byteway informática Ltda | D14: Duas Impressora novos Guiches 02/02 | E14: 400
B15: 2016-05-02 | C15: Tokio Marine Brasil Seguradora | D15: Seguro valores Buriti 05/07 | E15: 448.81
B178: TOTAL | E178: =SUM(E13:E177) -> 1748.81
